Cogmind - Beta 11.1 @@@ ROGUE MODE // 2022.09.16 @ 11:15:22 Player: ClassActJerk Result: Destroyed by S-10 Pest with Light Assault Rifle Performance ------------- Evolutions (1) 500 Regions Visited (2) 400 Robots Destroyed (8) 40 Value Destroyed (250) 250 Prototype IDs (0) 0 Alien Tech Used (0) 0 Bonus (0) 0 TOTAL SCORE: 1190 Bonus ------- None Cogmind --------- Core Integrity 0/400 Matter 152/300 Energy 6/100 System Corruption 0% Temperature Cool (0) Movement Core (150) Ox2 Location -9/Materials Parts ------- > --- POWER (1) -------- (None) > --- PROPULSION (3) --- (None) > --- UTILITY (3) ------ Small Storage Unit Improved Terrain Scan Processor ECM Suite > --- WEAPON (2) ------- (None) > --- INVENTORY (8) ---- Heat Sink Cooling System Particle Gun Peak State ------------ > --- POWER ------------ Light Ion Engine > --- PROPULSION ------- Light Treads Wheel > --- UTILITY ---------- Small Storage Unit Small Storage Unit Improved Terrain Scan Processor > --- WEAPON ----------- Medium Laser Rocket Launcher > --- INVENTORY -------- Light Treads Heat Sink Cooling System Terrain Scanner ECM Suite Rocket Launcher Rocket Launcher [Rating: 12] Favorites ----------- Power Light Ion Engine Engine Light Ion Engine Propulsion Light Treads Treads Light Treads Wheel Wheel Utility Small Storage Unit Device ECM Suite Storage Small Storage Unit Processor Improved Terrain Scan Processor Weapon Medium Laser Energy Gun Medium Laser Ballistic Gun Light Assault Rifle Launcher Rocket Launcher Build | -11 -10 -9 ------- Run | Scr Mat Mat Slots Evolved 2 | . . 2 Power . | . . . Propulsion 1 | . . 1 Utility 1 | . . 1 Weapon . | . . . Parts Attached 17 | 6 3 8 Power 1 | 1 . . Engine 1 | 1 . . Core . | . . . Reactor . | . . . Propulsion 4 | 1 . 3 Treads 3 | 1 . 2 Leg . | . . . Wheel 1 | . . 1 Hover . | . . . Flight . | . . . Utility 4 | 2 . 2 Device 1 | . . 1 Storage 2 | 2 . . Processor 1 | . . 1 Hackware . | . . . Protection . | . . . Artifact . | . . . Weapon 8 | 2 3 3 Energy Gun 3 | 1 1 1 Energy Cannon . | . . . Ballistic Gun 1 | 1 . . Ballistic Cannon . | . . . Launcher 4 | . 2 2 Special Weapon . | . . . Impact Weapon . | . . . Slashing Weapon . | . . . Piercing Weapon . | . . . Special Melee Weapon . | . . . Unidentified Prototypes . | . . . Parts Lost 7 | . . 7 Power 1 | . . 1 Propulsion 2 | . . 2 Utility . | . . . Weapon 4 | . . 4 Highest Loss Streak 6 | . . 6 To Critical Strikes 1 | . . 1 Average Slot Usage (%) 82 | . 84 80 Engine 11 | . 14 7 Treads 12 | . 14 11 Wheel 4 | . . 10 Storage 24 | . 28 20 Processor 3 | . . 8 Energy Gun 12 | . 14 10 Ballistic Gun 6 | . 12 . Launcher 5 | . . 10 Naked Turns . | . . . Heaviest Build 19 | 16 19 19 Greatest Support 20 | 20 20 20 Greatest Overweight (x) 1 | . . 1 Average Overweight (x) . | . . . Largest Inventory Capacity 8 | 8 8 8 Average Capacity 7 | 7 8 8 Most Carried 8 | 3 8 8 Average Carried 5 | 1 6 6 Final Capacity 8 | 8 8 8 Final Carried 8 | 3 8 3 Class Distribution -------------------- 100% | Mutant Dominant Class ---------------- Mutant | -10/Materials Mutant | -9/Materials Resources | -11 -10 -9 ----------- Run | Scr Mat Mat Matter Collected 365 | 265 8 92 Remotely . | . . . Salvage Created 209 | 68 35 106 Parts 9 | 1 1 7 Haulers Intercepted . | . . . Recyclers Shooed . | . . . Parts Field Recycled . | . . . Retrieved Matter . | . . . Parts Self-Destructed . | . . . Prevented . | . . . Kills | -11 -10 -9 ------- Run | Scr Mat Mat Combat Hostiles Destroyed 5 | . 1 4 Guns 1 | . 1 . AOE 4 | . . 4 Classes Destroyed 4 | 1 1 2 Recycler 1 | 1 . . Watcher 2 | . . 2 Grunt 3 | . 1 2 Sentry 2 | . . 2 Best Kill Streak 3 | 1 1 3 Combat Bots Only 3 | . 1 3 Max Kills in Single Turn 2 | 1 1 2 Gunslinging . | . . . Exploded 2 | . . 2 Melee . | . . . Uniques/NPCs Destroyed . | . . . Combat | -11 -10 -9 -------- Run | Scr Mat Mat Damage Taken 1196 | . 67 1129 Core 422 | . 20 402 Absorbed by Shields . | . . . Core Remaining (%) 96 | 100 92 . Volleys Fired 29 | 5 8 16 Largest 2 | 2 2 2 Hottest 83 | 70 70 83 Shots Fired 57 | 10 16 31 Gun 42 | 10 16 16 Cannon . | . . . Launcher 15 | . . 15 Special . | . . . Kinetic 13 | 5 8 . Thermal 29 | 5 8 16 Explosive 15 | . . 15 Electromagnetic . | . . . Robot Hit Streak 9 | 4 9 8 Robot Miss Streak 2 | 1 1 2 Penetration Max . | . . . Secondary Targets . | . . . Shots Hit Robots 43 | 8 13 22 Core Hits 16 | 2 2 12 Critical Kills . | . . . Critical Parts Destroyed . | . . . Critical Strikes 2 | 2 . . Burn 2 | 2 . . Melee Attacks . | . . . Impact . | . . . Slashing . | . . . Piercing . | . . . Sneak Attacks . | . . . Combat Hostiles . | . . . Follow-up Attacks . | . . . Damage Inflicted 905 | 79 136 690 Guns 354 | 79 136 139 Cannons . | . . . Explosions 551 | . . 551 Melee . | . . . Ramming . | . . . Kinetic 77 | 41 36 . Thermal 584 | 38 100 446 Explosive 244 | . . 244 Electromagnetic . | . . . Impact . | . . . Slashing . | . . . Piercing . | . . . Highest Corruption . | . . . Average Corruption . | . . . Corruption Purged . | . . . Corruption Blocked . | . . . Overload Shots . | . . . Overflow Damage 41 | . . 41 Projectiles . | . . . Explosions 41 | . . 41 Melee . | . . . Knockbacks . | . . . Impact . | . . . Kinetic . | . . . Secondary . | . . . Self-Inflicted Damage 87 | . . 87 Shots 3 | . . 3 Rammed . | . . . Targets Rammed . | . . . Kicked . | . . . Crushed . | . . . Highest Temperature 150 | 70 137 150 Average Temperature 55 | 36 59 59 Received Heat Transfer 309 | . 36 273 Siege Activations . | . . . Robots Corrupted . | . . . Combat Hostiles . | . . . Parts Fried . | . . . Impact Corruptions . | . . . Robots Melted . | . . . Combat Hostiles . | . . . Parts Melted 2 | . 1 1 Heat Transferred 1162 | 259 296 607 Parts Sabotaged . | . . . Parts Stolen . | . . . Parts Stripped . | . . . Power Chain Reactions . | . . . Missiles Intercepted . | . . . Alert | -11 -10 -9 ------- Run | Scr Mat Mat Peak Influence 390 | 5 53 390 Initial 22 | . 3 22 Average 73 | 3 19 165 Maximum Alert Level 1 | . . 1 Low Security (%) 81 | 100 100 52 Level 1 18 | . . 47 Level 2 . | . . . Level 3 . | . . . Level 4 . | . . . Level 5 . | . . . High Security . | . . . Max Security . | . . . Squads Dispatched 1 | . 1 . Investigation 1 | . 1 . Extermination . | . . . Reinforcement . | . . . Assault . | . . . Garrison . | . . . Intercept . | . . . Searches Triggered . | . . . Construction Impeded . | . . . Haulers Reinforced . | . . . Active Scanning Responses . | . . . Cargo Convoy Interrupts . | . . . Stealth | -11 -10 -9 --------- Run | Scr Mat Mat Distress Signals 1 | . . 1 Communications Jammed . | . . . Distress Signals . | . . . Times Spotted 15 | . 2 13 Peak Tracking Total 8 | . 2 8 Tactical Retreats . | . . . Traps | -11 -10 -9 ------- Run | Scr Mat Mat Traps Triggered 2 | . 1 1 Indirectly . | . . . Trap Hack Attempts . | . . . Triggered . | . . . Disarmed . | . . . Reprogrammed . | . . . Reused . | . . . Traps Extracted . | . . . Installed . | . . . Triggered . | . . . Machines | -11 -10 -9 ---------- Run | Scr Mat Mat Machines Disabled 2 | . . 2 Max in Single Turn 1 | . . 1 Machines Sabotaged . | . . . Garrisons Compromised . | . . . Overloaded Fab Kills . | . . . Hacking | -11 -10 -9 --------- Run | Scr Mat Mat Machines Accessed 4 | . 3 1 Terminals 4 | . 3 1 Fabricators . | . . . Repair Stations . | . . . Recycling Units . | . . . Scanalyzers . | . . . Garrison Access . | . . . Total Hacks 4 | . 3 1 Successful 2 | . 1 1 Failed 2 | . 2 . Catastrophic . | . . . Database Lockouts . | . . . Manual 3 | . 3 . Terminals 4 | . 3 1 Fabricators . | . . . Repair Stations . | . . . Recycling Units . | . . . Scanalyzers . | . . . Garrison Access . | . . . Terminal Hacks 1 | . . 1 Unreport Threat 1 | . . 1 Fabricator Hacks . | . . . Repair Station Hacks . | . . . Recycling Unit Hacks . | . . . Scanalyzer . | . . . Garrison Access Hacks . | . . . Unauthorized Hacks 1 | . 1 . Terminals 1 | . 1 . Botnet 1 | . 1 . Fabricators . | . . . Repair Stations . | . . . Recycling Units . | . . . Scanalyzers . | . . . Garrison Access . | . . . Data Cores Recovered . | . . . Used . | . . . Hacking Detections 1 | . . 1 Full Trace Events . | . . . Feedback Events . | . . . Feedback Blocked . | . . . Robot Schematics Acquired . | . . . Robots Built . | . . . Authchips . | . . . Time . | . . . Total Robot Build Rating . | . . . Part Schematics Acquired . | . . . Parts Built . | . . . Authchips . | . . . Time . | . . . Total Part Build Rating . | . . . Parts Repaired . | . . . Time . | . . . Parts Recycled . | . . . Recycled Matter . | . . . Retrieved Matter . | . . . Retrieved Components . | . . . Parts Scanalyzed . | . . . Part Schematics Acquired . | . . . Parts Damaged . | . . . Bothacking | -11 -10 -9 ------------ Run | Scr Mat Mat Used RIF Installer . | . . . Robots Hacked . | . . . Non-combat . | . . . Combat . | . . . Robot Hacks Applied . | . . . Relay Couplers Released . | . . . Fabnet Peak Effective % . | . . . Robots Rewired . | . . . Allies Hacked . | . . . Hacks Repelled . | . . . Allies | -11 -10 -9 -------- Run | Scr Mat Mat Total Allies . | . . . Largest Group . | . . . Highest-Rated Group . | . . . Highest-Rated Ally . | . . . Total Orders . | . . . Ally Attacks . | . . . Total Damage . | . . . Kills . | . . . Allies Corrupted . | . . . Allies Melted . | . . . Intel | -11 -10 -9 ------- Run | Scr Mat Mat Robot Analysis Total . | . . . Derelict Logs Recovered . | . . . Drone Launches . | . . . Drone Recoveries . | . . . Exploration | -11 -10 -9 ------------- Run | Scr Mat Mat Turns Passed 716 | 124 314 278 Spaces Moved 404 | 65 174 165 Core 7 | 7 . . Treads 276 | 58 174 44 Legs . | . . . Wheels 121 | . . 121 Hover . | . . . Flight . | . . . Fastest Speed 50 | 50 160 95 Average Speed 138 | 148 160 112 Slowest Speed 160 | 160 160 160 Overloaded Moves . | . . . Propulsion Burnouts . | . . . Robots Hopped . | . . . Cave-ins Triggered . | . . . Exploration Rate (%) 19 | 6 29 23 Regions Visited 2 Branch Regions . Pre-discovered Areas . | . . . Known Exits Taken . | . . . Unknown Exits Taken 2 | 1 1 . Scrap Searched . | . . . Spaces Dug . | . . . Terrain Destroyed 124 | . . 124 Melee . | . . . Projectile . | . . . AOE 124 | . . 124 Terrain Rammed . | . . . Walls Destroyed . | . . . Machines Disabled . | . . . Actions | -11 -10 -9 --------- Run | Scr Mat Mat Total 510 | 84 197 229 Wait 32 | . 1 31 Move 402 | 64 173 165 Hop . | . . . Pick Up 21 | 9 8 4 Fast Attach 1 | . 1 . Attach 16 | 6 2 8 Detach . | . . . Swap . | . . . Drop 9 | . 4 5 Fire 29 | 5 8 16 Melee . | . . . Ram . | . . . Kick . | . . . Crush . | . . . Escape Stasis . | . . . Rewire . | . . . Trap . | . . . Miscellaneous . | . . . Route ------- -11/Scrapyard -10/Materials -9/Materials History --------- Turn | Location | Event 27 | -11/Scrapyard | Discovered new exit (range 15) 125 | -11/Scrapyard | Entered Materials 316 | -10/Materials | Build established: Mutant 322 | -10/Materials | Discovered new exit (range 13) 439 | -10/Materials | Entered another Materials area 439 | -9/Materials | Evolved 2 slots: Propulsion x1, Utility x1 707 | -9/Materials | Core integrity fell below 50% 713 | -9/Materials | Core integrity fell below 20% 717 | -9/Materials | Destroyed by S-10 Pest with Light Assault Rifle Last Messages --------------- 00697_ U-05 Engineer builds a Wall. 00698_ Critical hit (Burn: +37). 00699_ U-05 Engineer lays Concrete. 00700_ The unstable cave ceiling collapses. 00700_ Lgt. Treads destroyed. 00700_ U-05 Engineer lays Concrete. 00701_ Particle Gun destroyed. 00701_ U-05 Engineer builds a Wall. 00702_ Wheel destroyed. 00702_ U-05 Engineer builds a Wall. 00703_ Rocket Launcher destroyed. 00706_ U-05 Engineer lays Concrete. 00707_ R-06 Scavenger collects Sml. Storage Unit. 00708_ Critical hit (Burn: +37). 00708_ U-05 Engineer builds a Wall. 00713_ K-01 Serf collects debris. 00713_ U-05 Engineer lays Concrete. 00715_ U-05 Engineer builds a Wall. 00716_ K-01 Serf collects debris. 00716_ R-06 Scavenger collects Heat Sink. Map ----- +----------------------------------------------------+ | # #?# ### # #????????????????????????? | | # #?#!!////### #????????????????????????? | | # """#?# !////### ###????????????????????????? | | # """#### ###### #?????????????????????????? | | # """# # ###### ######+###?????????????????? | | # # ### # #?????????????????? | | ####### ## # """"" #?????????????????? | | ?????## # # """"" #?????????????????? | | ?????# # # # # """"" #?????????????????? | | ????## + + #?????????????????? | | ????# # # """"" #?????????????????? | | ????# # # """"" #?????????????????? | | ????# # "# # """"" #?????????????????? | | ????# # # #?????????????????? | | ????# # # ##########?#+??????????????? | | ###### ## # ########## ???????????????? | | / # ????????????????? | | #""""###### ?????????????????? | | #####T## # ???????????????????? | | #######????????????????????? | | # #?????????????????????? | | """" """"""" # g ######????????????????? | | """" """"""% #g #????????????????? | | """" """"""" ! #r #????????????????? | | """" """"""" #sg #????????????????? | | """" """"""" # @ "" #????????????????? | | ? ss "" #????????????????? | | ? # s """ #????????????????? | | ?? # "T" #????????????????? | | ?######+########### # k #????????????????? | | ????? ???????????# ######+####????????????????? | | ??????????????????# ??? ??????????????????? | | ?????????????????? ????????????????? | | ?????????????????? ??????????????? | | ????????????????? ![ ????????????? | | ????????????????? ![ ??????????? | | ????????????????# """ """ """ [[ ""????????? | | ????????????????# """ """ """ "?????????? | | ?????????????????? ?"" """ """ "?????????? | | ???????????????????? ?? ????????? | | ???????????????????? ??? ??? ?????????? | | ??????????????????? ????? ???? ?????????? | | ??????????????????? ??????####?????###???????????? | | ?????????????????????????????????????????????????? | | ?????????????????????????????????????????????????? | | ?????????????????????????????????????????????????? | | ?????????????????????????????????????????????????? | | ?????????????????????????????????????????????????? | | ?????????????????????????????????????????????????? | | ?????????????????????????????????????????????????? | +----------------------------------------------------+ Best States ------------- Heat Dissipation 28 Energy Generation 10 Energy Capacity 125 Matter Stores 300 Matter Capacity 300 Sight Range 16 Terrain Scan Density 110 ECM Strength 1 Evasion (%) 41 Recoil Reduction 2 Item Schematics ----------------- None Robot Schematics ------------------ None Fabricated ------------ Nothing Alien Tech Used ----------------- None Achievements -------------- None Challenges ------------ None Game ------ Seed CoolantFlakPurifier Manual? 0 Play Time 00:10:53 Cumulative 3.1 hours Start 2022.09.16 @ 11:05:52 End 2022.09.16 @ 11:15:22 Sessions 1 Manual Loads 0 Difficulty Rogue Special Mode None Game No. 14 Rogue 14 Adventurer 0 Explorer 0 Win Type - Total 0 Types 0/0/0/0/0/0/0/0/0 Lore% 4 Gallery% 5 Achievement% 7 Wizard Run 0 Options --------- ASCII 0 Keyboard 0 Movement Mouse Keybinds 0 Fullscreen 1 Font 24/Crisp Map View 76x50 Tactical HUD 1 Map Filters NONE Filters NONE Steam 1 RUN: 0c10889e-03c9-4324-af7e-7fb5c050586d